bitfinex-derivatives/quotes_BNBF0:USTF0_20251220
["timestamp","ask_amount","ask_price","bid_price","bid_amount"]
[1766269203992,0.66439072,851.5,850.61,6.15375376]
[1766269204193,0.66439072,851.49,850.61,6.15375376]
[1766269204489,0.66439072,851.48,850.61,6.15375376]
[1766269204693,0.66439072,851.47,850.61,6.15375376]
[1766269204894,0.66439072,851.46,850.61,6.15375376]
[1766269205092,4.02894656,851.67,850.61,6.15375376]
[1766269205294,0.66477432,851.66,850.61,6.15375376]
[1766269205495,0.66477432,851.65,850.61,6.15375376]
[1766269205693,0.66477432,851.64,850.61,6.15375376]
[1766269205896,0.66477432,851.63,850.61,6.15375376]
[1766269206095,0.66477432,851.62,850.61,6.15375376]
[1766269206296,0.66477432,851.61,850.61,6.15375376]
[1766269206498,0.66477432,851.6,850.61,6.15375376]
[1766269206793,0.66477432,851.59,850.61,6.15375376]
[1766269206997,0.66477432,851.58,850.61,6.15375376]
[1766269207198,0.66477432,851.57,850.61,6.15375376]
[1766269207397,0.66477432,851.56,850.61,6.15375376]
[1766269207697,0.66477432,851.55,850.61,6.15375376]
[1766269207897,0.66477432,851.54,850.61,6.15375376]
[1766269208094,0.66477432,851.53,850.61,6.15375376]
[1766269208297,0.66477432,851.52,850.61,6.15375376]
[1766269208497,0.66477432,851.51,850.61,6.15375376]
[1766269208798,0.66477432,851.5,850.61,6.15375376]
[1766269208997,0.66477432,851.49,850.61,6.15375376]
[1766269209293,0.66477432,851.48,850.61,6.15375376]
[1766269209497,4.02894656,851.67,850.61,6.15375376]
[1766269209696,0.66520295,851.66,850.61,6.15375376]
[1766269209898,0.66520295,851.65,850.61,6.15375376]
[1766269210194,0.66520295,851.64,850.61,6.15375376]
[1766269210393,0.66520295,851.63,850.61,6.15375376]
[1766269210598,0.66520295,851.62,850.61,6.15375376]
[1766269210795,0.66520295,851.61,850.61,6.15375376]
[1766269210995,0.66520295,851.6,850.61,6.15375376]
[1766269211194,0.66520295,851.59,850.61,6.15375376]
[1766269211395,0.66520295,851.58,850.61,6.15375376]
[1766269211595,0.66520295,851.57,850.61,6.15375376]
[1766269211797,0.66520295,851.56,850.61,6.15375376]
[1766269211995,0.66520295,851.55,850.61,6.15375376]
[1766269212201,0.66520295,851.54,850.61,6.15375376]
[1766269212404,0.66520295,851.53,850.61,6.15375376]
[1766269212601,0.66520295,851.52,850.61,6.15375376]
[1766269212801,0.66520295,851.51,850.61,6.15375376]
[1766269213000,0.66520295,851.5,850.61,6.15375376]
[1766269213204,0.66520295,851.49,850.61,6.15375376]
[1766269213400,0.66520295,851.48,850.61,6.15375376]
[1766269213603,4.02894656,851.67,850.61,6.15375376]
[1766269213801,0.66526939,851.66,850.61,6.15375376]
[1766269214002,0.66526939,851.65,850.61,6.15375376]
[1766269214207,0.66526939,851.64,850.61,6.15375376]
[1766269214501,0.66526939,851.63,850.61,6.15375376]
[1766269214705,0.66526939,851.62,850.61,6.15375376]
[1766269214904,0.66526939,851.61,850.61,6.15375376]
[1766269215103,0.66526939,851.6,850.61,6.15375376]
[1766269215302,0.66526939,851.59,850.61,6.15375376]
[1766269215605,0.66526939,851.58,850.61,6.15375376]
[1766269215803,0.66526939,851.57,850.61,6.15375376]
[1766269216103,0.66526939,851.56,850.61,6.15375376]
[1766269216302,0.66522741,851.55,850.61,6.15375376]
[1766269216603,0.66522741,851.54,850.61,6.15375376]
[1766269216800,0.66522741,851.53,850.61,6.15375376]
[1766269217103,0.66522741,851.52,850.61,5.94934247]
[1766269217303,0.66522741,851.51,850.61,5.94934247]
[1766269217501,0.66522741,851.5,850.68,0.20437708]
[1766269217705,0.66522741,851.49,850.68,0.20437708]
[1766269218003,0.66522741,851.48,850.72,0.20437888]
[1766269218204,4.02894656,851.67,850.72,0.20437888]
[1766269218403,0.66520058,851.66,850.72,0.20437888]
[1766269218704,0.66520058,851.65,850.72,0.20437888]
[1766269218908,4.02894656,851.67,850.74,1.75826574]
[1766269219415,4.02894656,851.67,850.73,1.75826574]
[1766269220106,4.02894656,851.67,850.72,1.96264462]
[1766269221106,4.02894656,851.67,850.72,0.20437888]
[1766269227310,4.02894656,851.67,850.67,1.75826574]
[1766269227514,4.02894656,851.67,850.81,0.20434347]
[1766269263432,0.6653036,851.66,850.81,0.20434347]
[1766269263637,4.02894656,851.67,850.81,0.20434347]
[1766269263834,0.6653036,851.66,850.81,0.20434347]
[1766269264031,4.02894656,851.67,850.81,0.20434347]
[1766269264233,0.6653916,851.66,850.81,0.20434347]
[1766269264436,4.02894656,851.67,850.81,0.20434347]
[1766269264732,0.66540413,851.66,850.81,0.20434347]
[1766269264931,4.02894656,851.67,850.81,0.20434347]
[1766269265136,0.66540413,851.66,850.81,0.20434347]
[1766269265432,0.66540413,851.65,850.81,0.20434347]
[1766269265735,4.02894656,851.67,850.81,0.20434347]
[1766269265930,0.66547524,851.66,850.81,0.20434347]
[1766269266136,0.66547524,851.65,850.81,0.20434347]
[1766269266336,4.02894656,851.67,850.81,0.20434347]
[1766269266636,0.66555333,851.66,850.81,0.20434347]
[1766269266836,0.66555333,851.65,850.81,0.20434347]
[1766269267035,4.02894656,851.67,850.81,0.20434347]
[1766269267235,0.66562755,851.66,850.81,0.20434347]
[1766269267535,0.66562755,851.65,850.81,0.20434347]
[1766269267731,0.66562755,851.64,850.81,0.20434347]
[1766269267934,4.02894656,851.67,850.81,0.20434347]
[1766269268136,0.66563926,851.66,850.81,0.20434347]
[1766269268337,0.66563926,851.65,850.81,0.20434347]
[1766269268536,0.66563926,851.64,850.81,0.20434347]
[1766269268838,4.02894656,851.67,850.81,0.20434347]
[1766269269039,0.66560993,851.66,850.81,0.20434347]
[1766269269235,0.66560993,851.65,850.81,0.20434347]
[1766269269439,0.66560993,851.64,850.81,0.20434347]
[1766269269730,0.66560993,851.63,850.81,0.20434347]
[1766269269933,4.02894656,851.67,850.81,0.20434347]
[1766269270132,0.66568569,851.66,850.81,0.20434347]
[1766269270435,0.66568569,851.65,850.81,0.20434347]
[1766269270632,0.66568569,851.64,850.81,0.20434347]
[1766269270832,0.66568569,851.63,850.81,0.20434347]
[1766269271033,4.02894656,851.67,850.81,0.20434347]
[1766269271233,0.66580968,851.66,850.81,0.20434347]
[1766269271531,0.66580968,851.65,850.81,0.20434347]
[1766269271736,0.66580968,851.64,850.81,0.20434347]
[1766269271936,0.66580968,851.63,850.81,0.20434347]
[1766269272133,0.66580968,851.62,850.81,0.20434347]
[1766269272337,4.02894656,851.67,850.81,0.20434347]
[1766269272537,0.66589769,851.66,850.81,0.20434347]
[1766269272737,0.66589769,851.65,850.81,0.20434347]
[1766269273034,0.66589769,851.64,850.81,0.20434347]
[1766269273237,0.66589769,851.63,850.81,0.20434347]
[1766269273534,0.66589769,851.62,850.81,0.20434347]
[1766269273735,4.02894656,851.67,850.81,0.20434347]
[1766269273933,0.6659843,851.66,850.81,0.20434347]
[1766269274133,0.6659843,851.65,850.81,0.20434347]
[1766269274339,0.6659843,851.64,850.81,0.20434347]
[1766269274538,0.6659843,851.63,850.81,0.20434347]
[1766269274739,0.6659843,851.62,850.81,0.20434347]
[1766269274934,0.6659843,851.61,850.81,0.20434347]
[1766269275239,0.66618853,851.6,850.81,0.20434347]
[1766269275439,0.66618853,851.59,850.81,0.20434347]
[1766269275640,0.66618853,851.58,850.81,0.20434347]
[1766269275936,4.02894656,851.67,850.81,0.20434347]
[1766269276136,0.6661725,851.66,850.81,0.20434347]
[1766269276336,0.6661725,851.65,850.81,0.20434347]
[1766269276539,0.6661725,851.64,850.81,0.20434347]
[1766269276738,0.6661725,851.63,850.81,0.20434347]
[1766269276939,0.6661725,851.62,850.81,0.20434347]
[1766269277141,0.6661725,851.61,850.81,0.20434347]
[1766269277339,0.6661725,851.6,850.81,0.20434347]
[1766269277540,0.6661725,851.59,850.81,0.20434347]
[1766269277841,0.6661725,851.58,850.81,0.20434347]
[1766269278039,0.6661725,851.57,850.81,0.20434347]
[1766269278240,0.6661725,851.56,850.81,0.20434347]
[1766269278443,0.6661725,851.55,850.81,0.20434347]
[1766269278643,0.6661725,851.54,850.81,0.20434347]
[1766269278844,4.02894656,851.67,850.81,0.20434347]
[1766269279143,0.6663354,851.66,850.81,0.20434347]
[1766269279439,0.6663354,851.65,850.81,0.20434347]
[1766269279641,0.6663354,851.64,850.81,0.20434347]
[1766269279840,0.6663354,851.63,850.81,0.20434347]
[1766269280045,0.6663354,851.62,850.81,0.20434347]
[1766269280341,0.6663354,851.61,850.81,0.20434347]
[1766269280543,4.02894656,851.67,850.81,0.20434347]
[1766269280544,0.6663354,851.6,850.81,0.20434347]
[1766269280747,0.6663354,851.59,850.81,0.20434347]
[1766269280948,0.6663354,851.58,850.81,0.20434347]
[1766269281245,0.6663354,851.57,850.81,0.20434347]
[1766269281448,0.6663354,851.56,850.81,0.20434347]
[1766269281748,0.6663354,851.55,850.81,0.20434347]
[1766269281944,0.6663354,851.54,850.81,0.20434347]
[1766269282248,4.02894656,851.67,850.81,0.20434347]
[1766269282449,0.66631493,851.66,850.81,0.20434347]
[1766269282649,0.66631493,851.65,850.81,0.20434347]
[1766269282949,0.66631493,851.64,850.81,0.20434347]
[1766269283244,0.66631493,851.63,850.81,0.20434347]
[1766269283449,0.66631493,851.62,850.81,0.20434347]
[1766269283649,0.66631493,851.61,850.81,0.20434347]
[1766269283848,0.66631493,851.6,850.81,0.20434347]
[1766269284045,0.66631493,851.59,850.81,0.20434347]
[1766269284246,0.66631493,851.58,850.81,0.20434347]
[1766269284448,0.66631493,851.57,850.81,0.20434347]
[1766269284650,0.66631493,851.56,850.81,0.20434347]
[1766269284845,0.66631493,851.55,850.81,0.20434347]
[1766269285151,0.66631853,851.54,850.81,0.20434347]
[1766269285351,4.11596325,851.69,850.81,0.20434347]
[1766269285546,0.66631294,851.68,850.81,0.20434347]
[1766269285848,0.66631294,851.67,850.81,0.20434347]
[1766269286048,0.66631294,851.66,850.81,0.20434347]
[1766269286244,0.66631294,851.65,850.81,0.20434347]
[1766269286445,0.66631294,851.64,850.81,0.20434347]
[1766269286646,0.66631294,851.63,850.81,0.20434347]
[1766269286948,0.66631294,851.62,850.81,0.20434347]
[1766269287150,0.66631294,851.61,850.81,0.20434347]
[1766269287450,0.66631294,851.6,850.81,0.20434347]
[1766269287749,0.66631294,851.59,850.81,0.20434347]
[1766269287948,0.66631294,851.58,850.81,0.20434347]
[1766269288145,0.66631294,851.57,850.81,0.20434347]
[1766269288352,0.66631294,851.56,850.81,0.20434347]
[1766269288650,0.66631294,851.55,850.81,0.20434347]
[1766269288851,0.66631294,851.54,850.81,0.20434347]
[1766269289151,4.11596325,851.69,850.81,0.20434347]
[1766269289351,0.66632213,851.68,850.81,0.20434347]
[1766269289645,0.66632213,851.67,850.81,0.20434347]
[1766269289850,4.11596325,851.69,850.81,0.20434347]
[1766269289851,0.66632213,851.66,850.81,0.20434347]
[1766269290048,0.66632213,851.65,850.81,0.20434347]
[1766269290248,0.66632213,851.64,850.81,0.20434347]
[1766269290450,0.66632213,851.63,850.81,0.20434347]
[1766269290650,0.66632213,851.62,850.81,0.20434347]
[1766269290851,0.66632213,851.61,850.81,0.20434347]
[1766269291048,0.66632213,851.6,850.81,0.20434347]
[1766269291248,0.66632213,851.59,850.81,0.20434347]
[1766269291552,0.66632213,851.58,850.81,0.20434347]
[1766269291749,0.66632213,851.57,850.81,0.20434347]
[1766269291953,0.66632213,851.56,850.81,0.20434347]
[1766269292151,0.66632213,851.55,850.81,0.20434347]
[1766269292348,0.66632213,851.54,850.81,0.20434347]
[1766269292647,4.11596325,851.69,850.81,0.20434347]
[1766269292847,0.6663285,851.68,850.81,0.20434347]
[1766269293051,0.6663285,851.67,850.81,0.20434347]
[1766269293248,0.6663285,851.66,850.81,0.20434347]
[1766269293448,0.6663285,851.65,850.81,0.20434347]
[1766269293649,0.6663285,851.64,850.81,0.20434347]
[1766269293848,0.6663285,851.63,850.81,0.20434347]
[1766269294051,0.6663285,851.62,850.81,0.20434347]
[1766269294249,0.6663285,851.61,850.81,0.20434347]
[1766269294550,0.6663285,851.6,850.81,0.20434347]
[1766269294750,0.6663285,851.59,850.81,0.20434347]
[1766269295051,0.6663285,851.58,850.81,0.20434347]
[1766269295249,0.6663285,851.57,850.81,0.20434347]
[1766269295449,0.6663285,851.56,850.81,0.20434347]
[1766269295650,0.6663285,851.55,850.81,0.20434347]
[1766269295854,0.6663285,851.54,850.81,0.20434347]
[1766269296151,4.11596325,851.69,850.81,0.20434347]
[1766269296354,0.6663394,851.68,850.81,0.20434347]
[1766269296654,0.6663394,851.67,850.81,0.20434347]
[1766269296950,0.6663394,851.66,850.81,0.20434347]
[1766269297151,0.6663394,851.65,850.81,0.20434347]
[1766269297453,0.6663394,851.64,850.81,0.20434347]
[1766269297654,0.6663394,851.63,850.81,0.20434347]
[1766269297853,0.6663394,851.62,850.81,0.20434347]
[1766269298050,0.6663394,851.61,850.81,0.20434347]
[1766269298352,0.6663394,851.6,850.81,0.20434347]
[1766269298553,0.6663394,851.59,850.81,0.20434347]
[1766269298754,0.6663394,851.58,850.81,0.20434347]
[1766269298956,0.6663394,851.57,850.81,0.20434347]
[1766269299251,0.6663394,851.56,850.81,0.20434347]
[1766269299450,0.6663394,851.55,850.81,0.20434347]
[1766269299753,0.6663394,851.54,850.81,0.20434347]
[1766269300054,0.6663394,851.53,850.81,0.20434347]
[1766269300254,0.6663394,851.52,850.81,0.20434347]
[1766269300453,4.11596325,851.69,850.81,0.20434347]
[1766269300654,0.66627965,851.68,850.81,0.20434347]
[1766269300856,0.66627965,851.67,850.81,0.20434347]
[1766269301056,0.66627965,851.66,850.81,0.20434347]
[1766269301255,0.66627965,851.65,850.81,0.20434347]
[1766269301455,0.66627965,851.64,850.81,0.20434347]
[1766269301754,0.66627965,851.63,850.81,0.20434347]
[1766269301953,0.66627965,851.62,850.81,0.20434347]
[1766269302155,0.66627965,851.61,850.81,0.20434347]
[1766269302356,0.66627965,851.6,850.81,0.20434347]
[1766269302553,0.66627965,851.59,850.81,0.20434347]
[1766269302857,0.66627965,851.58,850.81,0.20434347]
[1766269303056,0.66627965,851.57,850.81,0.20434347]
[1766269303257,0.66627965,851.56,850.81,0.20434347]
[1766269303455,0.66627965,851.55,850.81,0.20434347]
[1766269303755,0.66627965,851.54,850.81,0.20434347]
[1766269304058,0.66627965,851.53,850.81,0.20434347]
[1766269304258,0.66627965,851.52,850.81,0.20434347]
[1766269304458,0.66627965,851.51,850.81,0.20434347]
[1766269304659,0.66627965,851.5,850.81,0.20434347]
[1766269304860,0.66627965,851.49,850.81,0.20434347]
[1766269305060,0.66627965,851.48,850.81,0.20434347]
[1766269305257,0.66627965,851.47,850.81,0.20434347]
[1766269305460,0.66627965,851.46,850.81,0.20434347]
[1766269305661,4.11596325,851.69,850.81,0.20434347]
[1766269305863,0.66586494,851.68,850.81,0.20434347]
[1766269306064,0.66586494,851.67,850.81,0.20434347]
[1766269306262,0.66586494,851.66,850.81,0.20434347]
[1766269306561,0.66586494,851.65,850.81,0.20434347]
[1766269306860,0.66586494,851.64,850.81,0.20434347]
[1766269307060,0.66586494,851.63,850.81,0.20434347]
[1766269307261,0.66586494,851.62,850.81,0.20434347]
[1766269307564,0.66586494,851.61,850.81,0.20434347]
[1766269307762,0.66586494,851.6,850.81,0.20434347]
[1766269308064,0.66586494,851.59,850.81,0.20434347]
[1766269308264,4.11596325,851.69,850.81,0.20434347]
[1766269308265,0.66586494,851.58,850.81,0.20434347]
[1766269308468,0.66586494,851.57,850.81,0.20434347]
[1766269308763,0.66586494,851.56,850.81,0.20434347]
[1766269308966,0.66586494,851.55,850.81,0.20434347]
[1766269309166,0.66586494,851.54,850.81,0.20434347]
[1766269309370,4.11596325,851.69,850.81,0.20434347]
[1766269309567,0.66699029,851.68,850.81,0.20434347]
[1766269309770,0.66699029,851.67,850.81,0.20434347]
[1766269310070,0.66699029,851.66,850.81,0.20434347]
[1766269310266,0.66699029,851.65,850.81,0.20434347]
[1766269310470,0.66699029,851.64,850.81,0.20434347]
[1766269310669,0.66699029,851.63,850.81,0.20434347]
[1766269310966,0.66699029,851.62,850.81,0.20434347]
[1766269311169,0.66699029,851.61,850.81,0.20434347]
[1766269311470,0.66699029,851.6,850.81,0.20434347]
[1766269311671,4.11596325,851.69,850.81,0.20434347]
[1766269311672,0.66699029,851.59,850.81,0.20434347]
[1766269311969,0.66699029,851.58,850.81,0.20434347]
[1766269312172,0.66699029,851.57,850.81,0.20434347]
[1766269312371,0.66699029,851.56,850.81,0.20434347]
[1766269312571,0.66699029,851.55,850.81,0.20434347]
[1766269312771,0.66699029,851.54,850.81,0.20434347]
[1766269312972,0.66699029,851.53,850.81,0.20434347]
[1766269313167,0.66699029,851.52,850.81,0.20434347]
[1766269313370,0.66699029,851.51,850.81,0.20434347]
[1766269313579,0.66699029,851.5,850.81,0.20434347]
[1766269313773,0.66699029,851.49,850.81,0.20434347]
[1766269313974,0.66699029,851.48,850.81,0.20434347]
[1766269314175,0.66699029,851.47,850.81,0.20434347]
[1766269314375,4.11596325,851.69,850.81,0.20434347]
[1766269314575,0.66673203,851.68,850.81,0.20434347]
[1766269314772,0.66673203,851.67,850.81,0.20434347]
[1766269315076,0.66673203,851.66,850.81,0.20434347]
[1766269315272,0.66673203,851.65,850.81,0.20434347]
[1766269315475,0.66673203,851.64,850.81,0.20434347]
[1766269315773,0.66673203,851.63,850.81,0.20434347]
[1766269315975,0.66673203,851.62,850.81,0.20434347]
[1766269316182,0.66673203,851.61,850.81,0.20434347]
[1766269316372,0.66673203,851.6,850.81,0.20434347]
[1766269316573,0.66673203,851.59,850.81,0.20434347]
[1766269316777,0.66673203,851.58,850.81,0.20434347]
[1766269316973,0.66673203,851.57,850.81,0.20434347]
[1766269317174,0.66673203,851.56,850.81,0.20434347]
[1766269317477,0.66673203,851.55,850.81,0.20434347]
[1766269317678,0.66673203,851.54,850.81,0.20434347]
[1766269317977,0.66673203,851.53,850.81,0.20434347]
[1766269318174,0.66673203,851.52,850.81,0.20434347]
[1766269318377,0.66673203,851.51,850.81,0.20434347]
[1766269318673,0.66673203,851.5,850.81,0.20434347]
[1766269318873,0.87572047,851.67,850.81,0.20434347]
[1766269318874,0.66673203,851.49,850.81,0.20434347]
[1766269319077,0.66673203,851.48,850.81,0.20434347]
[1766269319274,0.66673203,851.47,850.81,0.20434347]
[1766269319482,0.66673203,851.46,850.81,0.20434347]
[1766269319682,0.66673203,851.45,850.81,0.20434347]
[1766269319882,0.66673203,851.44,850.81,0.20434347]
[1766269320182,0.66673203,851.43,850.81,0.20434347]
[1766269320379,0.66673203,851.42,850.81,0.20434347]
[1766269320582,0.66673203,851.41,850.81,0.20434347]
[1766269320879,0.87572047,851.68,850.81,0.20434347]
[1766269321082,0.66635655,851.67,850.81,0.20434347]
[1766269321278,0.66635655,851.66,850.81,0.20434347]
[1766269321482,0.66635655,851.65,850.81,0.20434347]
[1766269321680,0.66635655,851.64,850.81,0.20434347]
[1766269321879,0.66635655,851.63,850.81,0.20434347]
[1766269322080,0.66635655,851.62,850.81,0.20434347]
[1766269322279,0.66635655,851.61,850.81,0.20434347]
[1766269322584,0.66635655,851.6,850.81,0.20434347]
[1766269322781,0.66635655,851.59,850.81,0.20434347]
[1766269322979,0.66635655,851.58,850.81,0.20434347]
[1766269323183,0.66635655,851.57,850.81,0.20434347]
[1766269323380,0.66635655,851.56,850.81,0.20434347]
[1766269323581,0.66635655,851.55,850.81,0.20434347]
[1766269323782,0.66635655,851.54,850.81,0.20434347]
[1766269323983,0.66635655,851.53,850.81,0.20434347]
[1766269324184,0.66635655,851.52,850.81,0.20434347]
[1766269324481,0.66635655,851.51,850.81,0.20434347]
[1766269324682,0.66635655,851.5,850.81,0.20434347]
[1766269324882,0.66635655,851.49,850.81,0.20434347]
[1766269325086,0.66635655,851.48,850.81,0.20434347]
[1766269325284,0.66635655,851.47,850.81,0.20434347]
[1766269325491,0.66635655,851.46,850.81,0.20434347]
[1766269325689,0.66635655,851.45,850.81,0.20434347]
[1766269325888,0.66635655,851.44,850.81,0.20434347]
[1766269326085,4.11596325,851.69,850.81,0.20434347]
[1766269326387,0.66592055,851.68,850.81,0.20434347]
[1766269326587,0.66592055,851.67,850.81,0.20434347]
[1766269326787,0.66592055,851.66,850.81,0.20434347]
[1766269326986,0.66592055,851.65,850.81,0.20434347]
[1766269327190,0.66592055,851.64,850.81,0.20434347]
[1766269327486,0.66592055,851.63,850.81,0.20434347]
[1766269327687,0.66592055,851.62,850.81,0.20434347]
[1766269327886,0.66592055,851.61,850.81,0.20434347]
[1766269328093,0.66592055,851.6,850.81,0.20434347]
[1766269328390,0.66592055,851.59,850.81,0.20434347]
[1766269328588,0.66592055,851.58,850.81,0.20434347]
[1766269328792,0.66592055,851.57,850.81,0.20434347]
[1766269328990,0.66592055,851.56,850.81,0.20434347]
[1766269329192,0.66592055,851.55,850.81,0.20434347]
[1766269329390,0.66592055,851.54,850.81,0.20434347]
[1766269329589,0.66592055,851.53,850.81,0.20434347]
[1766269329790,0.66592055,851.52,850.81,0.20434347]
[1766269330094,0.66592055,851.51,850.81,0.20434347]
[1766269330390,0.66592055,851.5,850.81,0.20434347]
[1766269330590,0.66592055,851.49,850.81,0.20434347]
[1766269330789,0.66592055,851.48,850.81,0.20434347]
[1766269330992,4.11596325,851.69,850.81,0.20434347]
[1766269330993,0.66592055,851.47,850.81,0.20434347]
[1766269331190,4.11596325,851.69,850.81,0.20434347]
[1766269331391,0.66586243,851.68,850.81,0.20434347]
[1766269331590,0.66586243,851.67,850.81,0.20434347]
[1766269331790,0.66586243,851.66,850.81,0.20434347]
[1766269331991,0.66586243,851.65,850.81,0.20434347]
[1766269332195,0.66586243,851.64,850.81,0.20434347]
[1766269332495,0.66586243,851.63,850.81,0.20434347]
[1766269332700,0.66586243,851.62,850.81,0.20434347]
[1766269332896,0.66586243,851.61,850.81,0.20434347]
[1766269333096,0.66586243,851.6,850.81,0.20434347]
[1766269333294,0.66586243,851.59,850.81,0.20434347]
[1766269333493,0.66586243,851.58,850.81,0.20434347]
[1766269333697,0.66586243,851.57,850.81,0.20434347]
[1766269333895,0.66586243,851.56,850.81,0.20434347]
[1766269334098,0.66586243,851.55,850.81,0.20434347]
[1766269334295,0.66586243,851.54,850.81,0.20434347]
[1766269334494,0.66586243,851.53,850.81,0.20434347]
[1766269334695,0.66586243,851.52,850.81,0.20434347]
[1766269334896,0.66586243,851.51,850.81,0.20434347]
[1766269335097,0.66586243,851.5,850.81,0.20434347]
[1766269335297,0.66586243,851.49,850.81,0.20434347]
[1766269335495,0.66586243,851.48,850.81,0.20434347]
[1766269335796,0.66586243,851.47,850.81,0.20434347]
[1766269335996,4.11596325,851.69,850.81,0.20434347]
[1766269336298,0.66587585,851.68,850.81,0.20434347]
[1766269336498,0.66587585,851.67,850.81,0.20434347]
[1766269336696,0.66587585,851.66,850.81,0.20434347]
[1766269336894,0.66587585,851.65,850.81,0.20434347]
[1766269337096,0.66587585,851.64,850.81,0.20434347]
[1766269337302,0.66587585,851.63,850.81,0.20434347]
[1766269337499,0.66587585,851.62,850.81,0.20434347]
[1766269337704,0.66587585,851.61,850.81,0.20434347]
[1766269337901,0.66587585,851.6,850.81,0.20434347]
[1766269338100,0.66587585,851.59,850.81,0.20434347]
[1766269338298,0.66587585,851.58,850.81,0.20434347]
[1766269338501,0.66587585,851.57,850.81,0.20434347]
[1766269338699,0.66587585,851.56,850.81,0.20434347]
[1766269338902,0.66587585,851.55,850.81,0.20434347]
[1766269339100,0.66587585,851.54,850.81,0.20434347]
[1766269339301,0.66587585,851.53,850.81,0.20434347]
[1766269339499,0.66587585,851.52,850.81,0.20434347]
[1766269339699,0.66587585,851.51,850.81,0.20434347]
[1766269339904,0.66587585,851.5,850.81,0.20434347]
[1766269340203,0.66587585,851.49,850.81,0.20434347]
[1766269340401,0.66587585,851.48,850.81,0.20434347]
[1766269340600,0.66587585,851.47,850.81,0.20434347]
[1766269340805,4.11596325,851.69,850.81,0.20434347]
[1766269341006,0.66544411,851.68,850.81,0.20434347]
[1766269341201,0.66544411,851.67,850.81,0.20434347]
[1766269341506,0.66544411,851.66,850.81,0.20434347]
[1766269341800,0.66544411,851.65,850.81,0.20434347]
[1766269342005,4.11596325,851.69,850.81,0.20434347]
[1766269342304,0.66545871,851.68,850.81,0.20434347]
[1766269342605,0.66545871,851.67,850.81,0.20434347]
[1766269342904,0.66545871,851.66,850.81,0.20434347]
[1766269343107,0.66545871,851.65,850.81,0.20434347]
[1766269343403,0.66545871,851.64,850.81,0.20434347]
[1766269343601,0.66545871,851.63,850.81,0.20434347]
[1766269343805,0.66545871,851.62,850.81,0.20434347]
[1766269344003,0.66545871,851.61,850.81,0.20434347]
[1766269344202,0.66545871,851.6,850.81,0.20434347]
[1766269344401,0.66545871,851.59,850.81,0.20434347]
[1766269344605,0.66545871,851.58,850.81,0.20434347]
[1766269344905,0.66545871,851.57,850.81,0.20434347]
[1766269345105,0.66545871,851.56,850.81,0.20434347]
[1766269345305,0.66545871,851.55,850.81,0.20434347]
[1766269345501,0.66545871,851.54,850.81,0.20434347]
[1766269345705,0.66545871,851.53,850.81,0.20434347]
[1766269345905,0.66545871,851.52,850.81,0.20434347]
[1766269346206,0.66545871,851.51,850.81,0.20434347]
[1766269346506,0.66545871,851.5,850.81,0.20434347]
[1766269346700,0.66545871,851.49,850.81,0.20434347]
[1766269346901,0.66545871,851.48,850.81,0.20434347]
[1766269347104,0.66545871,851.47,850.81,0.20434347]
[1766269347302,0.66545871,851.46,850.81,0.20434347]
[1766269347605,4.11596325,851.69,850.81,0.20434347]
[1766269347803,0.66552962,851.68,850.81,0.20434347]
[1766269348003,0.66552962,851.67,850.81,0.20434347]
[1766269348307,0.66552962,851.66,850.81,0.20434347]
[1766269348502,0.66552962,851.65,850.81,0.20434347]
[1766269348702,0.66552962,851.64,850.81,0.20434347]
[1766269348906,0.66552962,851.63,850.81,0.20434347]
[1766269349205,0.66552962,851.62,850.81,0.20434347]
[1766269349405,0.66552962,851.61,850.81,0.20434347]
[1766269349706,0.66552962,851.6,850.81,0.20434347]
[1766269350006,0.66552962,851.59,850.81,0.20434347]
[1766269350305,0.66552962,851.58,850.81,0.20434347]
[1766269350506,0.66552962,851.57,850.81,0.20434347]
[1766269350802,0.66552962,851.56,850.81,0.20434347]
[1766269351001,0.66552962,851.55,850.81,0.20434347]
[1766269351201,0.66552962,851.54,850.81,0.20434347]
[1766269351404,0.66552962,851.53,850.81,0.20434347]
[1766269351602,0.66552962,851.52,850.81,0.20434347]
[1766269351801,0.66552962,851.51,850.81,0.20434347]
[1766269352104,0.66552962,851.5,850.81,0.20434347]
[1766269352302,0.66552962,851.49,850.81,0.20434347]
[1766269352506,0.66552962,851.48,850.81,0.20434347]
[1766269352704,0.66552962,851.47,850.81,0.20434347]
[1766269352902,0.66552962,851.46,850.81,0.20434347]
[1766269353104,0.66552962,851.45,850.81,0.20434347]
[1766269353304,0.66576782,851.44,850.81,0.20434347]
[1766269353506,4.11596325,851.69,850.81,0.20434347]
[1766269353708,0.66577672,851.68,850.81,0.20434347]
[1766269354008,0.66577672,851.67,850.81,0.20434347]
[1766269354308,0.66577672,851.66,850.81,0.20434347]
[1766269354608,0.66577672,851.65,850.81,0.20434347]
[1766269354805,0.66577672,851.64,850.81,0.20434347]
[1766269355105,0.66577672,851.63,850.81,0.20434347]
[1766269355304,0.66577672,851.62,850.81,0.20434347]
[1766269355507,0.66577672,851.61,850.81,0.20434347]
[1766269355808,0.66577672,851.6,850.81,0.20434347]
[1766269356104,0.66577672,851.59,850.81,0.20434347]
[1766269356308,0.66577672,851.58,850.81,0.20434347]
[1766269356503,0.66577672,851.57,850.81,0.20434347]
[1766269356707,0.66577672,851.56,850.81,0.20434347]
[1766269356907,0.66577672,851.55,850.81,0.20434347]